Cogmind - Beta 15 @@@ ROGUE MODE // 2025.09.21 @ 15:04:00 Player: deadnoob Result: Destroyed by G-50 Soldier with Heavy Laser Performance ------------- Evolutions (5) 2500 Regions Visited (21) 4200 Robots Destroyed (164) 820 Value Destroyed (5362) 5362 Prototype IDs (55) 1100 Alien Tech Used (1) 200 Bonus (3403) 3403 TOTAL SCORE: 17585 Bonus ------- High Alert Combat Kills 314 Follower Combat Kills 2173 Entered Garrisons 200 Network Hubs Disabled 200 Aligned with FarCom 300 Met Imprinter 300 Destroyed Z-Imprinter 1000 Acquired ECA 300 Built Enhanced Grunts 300 A7 Reached Mainframe 300 Friendly Fire -1984 Cogmind --------- Core Integrity 0/1000 Matter 261/300 Energy 60/100 System Corruption 12% Temperature Cool (20) Movement Hovering (70) Location -5/Factory Parts ------- > --- POWER (2) -------- (None) > --- PROPULSION (6) --- Gyrokinetic Inverter > --- UTILITY (8) ------ Advanced Terrain Scan Processor Advanced System Restoration Module > --- WEAPON (2) ------- (None) > --- INVENTORY (5) ---- Micro Nuclear Core Advanced Cooling System Long-range Terrain Scanner Zionite Weapon Casing Zionite Phaser-S Peak State ------------ > --- POWER ------------ Light Angular Momentum Engine Micro Fission Core > --- PROPULSION ------- Antigrav System Antigrav System Antigrav System Antigrav System Antigrav System Antigrav System > --- UTILITY ---------- Advanced Cooling System Advanced Signal Interpreter Advanced Terrain Scan Processor Improved Hacking Suite Improved Hacking Suite Improved Hacking Suite Experimental System Shield Authchip [Device] > --- WEAPON ----------- Zionite Phaser-S Hypervelocity Railgun > --- INVENTORY -------- Seismic Detector ECM Suite Zionite Weapon Casing Hardened Medium Armor Plating [Rating: 105] Favorites ----------- Power Zionite Light DM Reactor Engine Light Deuterium Engine Power Core Light Nuclear Core Reactor Zionite Light DM Reactor Propulsion Combat Airjet Treads Light Treads Leg Aluminum Leg Hover Unit Combat Airjet Flight Unit Improved Flight Unit Utility Large Storage Unit Device Improved Heat Sink Storage Large Storage Unit Processor Advanced Terrain Scan Processor Hackware Improved Hacking Suite Protection Powered Armor Weapon Gatling Laser Energy Gun Gatling Laser Energy Cannon Neutron Cannon Ballistic Gun Enhanced Autogun Ballistic Cannon Assault Cannon Launcher Rocket Launcher Impact Weapon Powered Hammer Slashing Weapon Ripper Build | -11 -10 -10 -10 -9 -8 -8 -8 -7 -7 -7 -7 -7 -6 -6 -6 -6 -6 -6 -5 -5 -5 ------- Run | Yrd Mat Min Exi Min Mat Gar Mat Fac Low Low Zio Dee Pro Fac Ext Cet Arc Hub Fac Was Fac Slots Evolved 10 | . . . . . 4 . . 2 . . . . . 2 . . . . 2 . . Power 1 | . . . . . . . . . . . . . . . . . . . 1 . . Propulsion 3 | . . . . . 2 . . . . . . . . . . . . . 1 . . Utility 6 | . . . . . 2 . . 2 . . . . . 2 . . . . . . . Weapon . | . . . . . . . . . . . . . . . . . . . . . . Parts Attached 160 | 1 5 4 2 4 31 6 11 12 1 1 5 15 . 3 7 2 10 8 1 7 24 Power 12 | . . . . 1 3 . 1 . . . . 1 . . 1 . 1 . . 2 2 Engine 7 | . . . . 1 2 . 1 . . . . . . . . . 1 . . 1 1 Core 3 | . . . . . 1 . . . . . . . . . . . . . . 1 1 Reactor 2 | . . . . . . . . . . . . 1 . . 1 . . . . . . Propulsion 41 | . 2 1 . . 9 4 4 2 . . . 3 . . 1 1 2 1 . 3 8 Treads 16 | . 2 1 . . 7 4 1 . . . . . . . . 1 . . . . . Leg . | . . . . . . . . . . . . . . . . . . . . . . Wheel . | . . . . . . . . . . . . . . . . . . . . . . Hover 24 | . . . . . 2 . 2 2 . . . 3 . . 1 . 2 1 . 3 8 Flight 1 | . . . . . . . 1 . . . . . . . . . . . . . . Utility 68 | . 2 2 1 2 13 2 2 8 1 . 4 6 . 3 . . 5 3 1 1 12 Device 25 | . . 2 1 1 3 1 1 2 . . 2 3 . . . . 3 . . . 6 Storage 5 | . 2 . . . 1 . . . . . . 1 . . . . . . . . 1 Processor 5 | . . . . . . . 1 . 1 . 2 . . . . . . . . 1 . Hackware 18 | . . . . . 1 1 . 5 . . . . . 3 . . 1 3 . . 4 Protection 15 | . . . . 1 8 . . 1 . . . 2 . . . . 1 . 1 . 1 Artifact . | . . . . . . . . . . . . . . . . . . . . . . Weapon 39 | 1 1 1 1 1 6 . 4 2 . 1 1 5 . . 5 1 2 4 . 1 2 Energy Gun 14 | 1 1 1 . 1 3 . . . . 1 1 2 . . . 1 . 2 . . . Energy Cannon 6 | . . . . . . . 1 . . . . 1 . . . . 1 1 . . 2 Ballistic Gun 4 | . . . . . 2 . . . . . . . . . . . 1 . . 1 . Ballistic Cannon 3 | . . . . . 1 . 1 1 . . . . . . . . . . . . . Launcher 6 | . . . 1 . . . 1 . . . . 2 . . 1 . . 1 . . . Special Weapon . | . . . . . . . . . . . . . . . . . . . . . . Impact Weapon 1 | . . . . . . . 1 . . . . . . . . . . . . . . Slashing Weapon 5 | . . . . . . . . 1 . . . . . . 4 . . . . . . Piercing Weapon . | . . . . . . . . . . . . . . . . . . . . . . Special Melee Weapon . | . . . . . . . . . . . . . . . . . . . . . . Unidentified Prototypes 23 | . . . 1 . 3 . 1 . 1 . 1 10 . . . 2 1 2 . . 1 Corrupted Parts 3 | . . . . 2 . . . . . . . . . . . . . 1 . . . System Corruption 23 | . . . . 13 . . . . . . . . . . . . . 10 . . . Parts Lost 50 | . 1 3 . 1 4 . 1 . . . . 7 . . 7 . . 8 . 1 17 Power 4 | . . 1 . . 1 . . . . . . . . . 1 . . . . . 1 Propulsion 20 | . . 1 . 1 2 . 1 . . . . 1 . . 2 . . 5 . . 7 Utility 17 | . . 1 . . . . . . . . . 2 . . 2 . . 2 . 1 9 Weapon 9 | . 1 . . . 1 . . . . . . 4 . . 2 . . 1 . . . Highest Loss Streak 7 | . 1 1 . 1 1 . 1 . . . . 5 . . 4 . . 6 . 1 7 To Critical Strikes . | . . . . . . . . . . . . . . . . . . . . . . Average Backups 11 | 6 5 7 8 10 13 13 13 14 13 12 12 14 13 11 12 12 12 11 4 4 6 Power . | 1 1 1 . . . . . . . . . . 1 1 . . . 1 . . . Propulsion 1 | 4 2 1 2 2 3 3 3 1 2 2 1 1 1 1 . . . . . . . Utility 6 | . . 1 1 2 6 7 7 8 5 5 5 9 8 6 7 7 8 8 3 4 4 Weapon 2 | 1 1 3 3 4 3 2 2 4 4 3 3 2 2 2 3 4 2 1 1 . 1 Tool/Special . | . . . . . . . . . . . . . . . . . . . . . . Unused Backups 29 | . 5 1 . . 7 . . 2 2 . 3 . 1 . . . 1 3 . 1 3 Power 4 | . 1 1 . . . . . . . . . . 1 . . . . . . . 1 Propulsion 4 | . 2 . . . 2 . . . . . . . . . . . . . . . . Utility 10 | . 1 . . . 1 . . 1 . . 1 . . . . . 1 2 . 1 2 Weapon 7 | . 1 . . . 3 . . . 2 . 1 . . . . . . . . . . Tool/Special 4 | . . . . . 1 . . 1 . . 1 . . . . . . 1 . . . Average Slot Usage (%) 87 | . 85 77 84 84 87 90 94 84 84 85 86 89 92 91 76 73 99 91 51 71 78 Engine 4 | . 14 . . 10 3 9 9 7 7 7 7 1 . . . . . . 5 7 3 Reactor 1 | . . . . . . . . . . . . 5 7 6 6 6 5 5 . . . Treads 11 | . 3 27 28 17 26 36 30 . . . . . . . . . . . . . . Leg 1 | . 24 . . . . . . . . . . . . . . . . . . . . Hover 14 | . . . . . . . 2 23 26 28 28 28 28 25 19 18 30 26 5 11 22 Device 8 | . . 6 13 3 10 8 8 7 14 13 7 14 21 12 3 . 11 10 . . 7 Storage 8 | . 14 14 14 14 9 9 9 7 7 7 7 7 7 6 6 6 6 5 . . 3 Processor 7 | . . . . . . . . 7 14 14 15 16 14 12 12 12 12 12 11 13 11 Hackware 7 | . . . . . 3 . . 22 7 7 5 . . 15 18 18 12 14 27 23 16 Protection 5 | . . . . 10 10 9 16 . . . 6 2 . . . 4 5 5 1 5 . Energy Gun 7 | . 13 25 27 24 11 8 7 . . . 1 5 . . . . . 1 . 4 2 Energy Cannon 1 | . . . . . . . . . . . . 1 7 6 1 . 5 5 . . 1 Ballistic Gun 1 | . 14 2 . . 4 . . . . . 1 1 . . . . . . . 2 2 Ballistic Cannon 2 | . . . . . 2 8 8 . . . . 3 7 6 1 . . . . . . Slashing Weapon 2 | . . . . . . . . 6 6 6 5 . . . 5 5 6 2 . . . Peak Build Rating 105 | 6 7 11 19 15 35 35 43 54 61 61 71 92 83 90 87 80 96 98 55 92 105 Average Rating 51 | 6 5 8 10 12 29 34 34 49 58 60 62 76 80 84 71 66 93 87 50 70 76 On Entrance 48 | 6 6 6 11 12 12 35 34 40 53 61 61 64 83 80 83 62 67 95 44 55 92 Naked Turns . | . . . . . . . . . . . . . . . . . . . . . . Heaviest Build 63 | 10 25 24 27 32 59 59 59 41 50 50 51 63 50 50 48 36 52 59 10 27 53 Greatest Support 83 | 20 40 40 40 40 83 83 80 44 52 52 52 68 56 56 56 36 54 54 10 56 66 Greatest Overweight (x) 17 | . . . . 1 1 . . . . . . 1 . . 1 . 17 1 . 2 1 Average Overweight (x) . | . . . . . . . . . . . . . . . . . 7 . . . . Largest Inventory Capacity 15 | 8 15 15 15 15 15 15 15 15 15 15 15 15 15 15 15 15 15 15 5 5 10 Average Capacity 14 | 8 10 15 14 15 15 15 15 15 15 15 15 15 15 15 15 15 15 13 5 5 8 Most Carried 15 | 6 9 10 10 12 15 15 15 15 15 15 15 15 15 15 15 15 15 15 5 5 10 Average Carried 13 | 5 5 8 9 11 14 14 14 14 14 14 14 14 14 13 14 14 14 13 4 4 6 Final Capacity 15 | 8 15 15 15 15 15 15 15 15 15 15 15 15 15 15 15 15 15 5 5 5 5 Final Carried 15 | 4 4 10 10 12 15 15 15 14 15 15 15 14 15 15 15 14 15 5 5 5 5 Class Distribution -------------------- 32% | Mutant 21% | Scavenger-Mutant 17% | Commander-Mutant 15% | Hacker-Mutant 9% | Scout Dominant Class ---------------- Mutant | -10/Materials Mutant | -10/Mines Mutant | -10/Exiles Mutant | -9/Mines Scavenger-Mutant | -8/Materials Scavenger-Mutant | -8/Garrison Scavenger-Mutant | -8/Materials Hacker-Mutant | -7/Factory Scout | -7/Lower Caves Scout | -7/Lower Caves Mutant | -7/Zion Mutant | -7/Deep Caves Scout | -6/Proximity Caves Hacker-Scout | -6/Factory Hacker-Mutant | -6/Extension Commander-Mutant | -6/Cetus Commander-Mutant | -6/Archives Commander-Mutant | -6/Hub_04(d) Wizard-Mutant | -5/Factory Hacker-Mutant | -5/Waste Hacker-Mutant | -5/Factory Resources | -11 -10 -10 -10 -9 -8 -8 -8 -7 -7 -7 -7 -7 -6 -6 -6 -6 -6 -6 -5 -5 -5 ----------- Run | Yrd Mat Min Exi Min Mat Gar Mat Fac Low Low Zio Dee Pro Fac Ext Cet Arc Hub Fac Was Fac Matter Collected 4661 | 200 76 40 . 119 706 416 702 296 142 92 149 528 98 . 315 43 213 67 . 105 354 Remotely . | . . . . . . . . . . . . . . . . . . . . . . Salvage Created 6552 | . 230 243 . 60 1313 761 1178 471 107 97 . 325 . . 458 . 328 229 . 129 623 Parts 304 | . 8 7 . 5 69 33 53 28 4 1 . 18 . . 15 . 26 9 . 7 21 Haulers Intercepted 9 | . 1 . . . 1 . 5 1 . . . . . . . . . . . . 1 Recyclers Shooed 5 | . 1 . . . 1 . . 1 . . . . . . 1 . . 1 . . . Parts Field Recycled . | . . . . . . . . . . . . . . . . . . . . . . Retrieved Matter . | . . . . . . . . . . . . . . . . . . . . . . Parts Self-Destructed 1 | . . . . . . . . . . 1 . . . . . . . . . . . Prevented . | . . . . . . . . . . . . . . . . . . . . . . Kills | -11 -10 -10 -10 -9 -8 -8 -8 -7 -7 -7 -7 -7 -6 -6 -6 -6 -6 -6 -5 -5 -5 ------- Run | Yrd Mat Min Exi Min Mat Gar Mat Fac Low Low Zio Dee Pro Fac Ext Cet Arc Hub Fac Was Fac Combat Hostiles Destroyed 110 | . 4 6 . 5 26 22 25 1 . . . 12 . . 2 . . 1 . . 6 Melee 2 | . . . . . . . . 1 . . . . . . 1 . . . . . . Guns 60 | . 4 4 . 1 19 13 14 . . . . 4 . . . . . . . . 1 Cannons 24 | . . . . . 1 5 10 . . . . 3 . . 1 . . 1 . . 3 AOE 20 | . . 2 . 4 5 4 . . . . . 5 . . . . . . . . . Classes Destroyed 22 | . 2 3 . 1 7 3 1 . 1 1 . 2 . . . . . . . 1 . Worker 13 | . . . . 1 2 . 6 4 . . . . . . . . . . . . . Builder 3 | . . . . . 2 . . 1 . . . . . . . . . . . . . Tunneler 2 | . . . . . . . 1 1 . . . . . . . . . . . . . Hauler 9 | . 1 . . . 1 . 5 1 . . . . . . . . . . . . 1 Recycler 11 | . . 1 . . 2 . . 3 . . . . . . 3 . . 1 . . 1 Minesweeper 1 | . . . . . . . . . . 1 . . . . . . . . . . . Operator 11 | . . . . . . . . . . . . . . . 1 . 9 1 . . . Watcher 7 | . . . . . 1 . 3 2 . . . . . . . . . 1 . . . Swarmer 20 | . . 3 . 5 3 4 5 . . . . . . . . . . . . . . Cutter 2 | . . . . . 2 . . . . . . . . . . . . . . . . Grunt 33 | . 4 2 . . 11 6 7 . . . . . . . 2 . . . . . 1 Brawler 4 | . . . . . 1 1 1 . . . . . . . . . . . . . 1 Duelist 3 | . . . . . 1 1 1 . . . . . . . . . . . . . . Sentry 22 | . . . . . 7 6 9 . . . . . . . . . . . . . . Specialist 3 | . . . . . . 2 . . . . . . . . . . . 1 . . . Hunter 3 | . . . . . . 1 1 . . . . . . . . . . . . . 1 Programmer 5 | . . . . . . 1 . 1 . . . . . . . . . . . . 3 Heavy 2 | . . . . . 1 . 1 . . . . . . . . . . . . . . Z-Technician 4 | . . . . . . . . . . . . 4 . . . . . . . . . Z-Light 6 | . . . . . . . . . . . . 6 . . . . . . . . . Tinkerer 1 | . . . . . . . . . 1 . . . . . . . . . . . . Assembled 7 | . . 1 . . . . . . . . . 6 . . . . . . . . . Savage 2 | . . . . . . . . . 1 1 . . . . . . . . . . . Martyr 2 | . . . . . . . . . . . . . . . . . . . . 2 . Best Kill Streak 5 | . 2 3 . 5 4 4 5 3 . 1 . 4 . . 2 . 4 2 . . 3 Combat Bots Only 5 | . 2 3 . 4 4 4 5 1 . . . 3 . . 1 . . 1 . . 3 Max Kills in Single Turn 4 | . 1 2 . 4 2 2 2 1 1 1 . 1 . . 1 . 1 1 . 1 1 Gunslinging 1 | . . 1 . . . . . . . . . . . . . . . . . . . Exploded 3 | . . 2 . 3 2 2 . . . . . 1 . . . . . . . . . Melee 1 | . . . . . . . . 1 . . . . . . 1 . . . . . . Uniques/NPCs Destroyed . | . . . . . . . . . . . . . . . . . . . . . . Combat | -11 -10 -10 -10 -9 -8 -8 -8 -7 -7 -7 -7 -7 -6 -6 -6 -6 -6 -6 -5 -5 -5 -------- Run | Yrd Mat Min Exi Min Mat Gar Mat Fac Low Low Zio Dee Pro Fac Ext Cet Arc Hub Fac Was Fac Hostile Shots Fired 879 | . 31 21 . 13 117 84 71 6 . 2 . 102 . 11 101 . . 121 . . 199 Missed 354 | . 7 3 . 6 40 24 25 5 . 2 . 44 . 6 45 . . 59 . . 88 Hits 525 | . 24 18 . 7 77 60 46 1 . . . 58 . 5 56 . . 62 . . 111 Melee 7 | . . . . . 1 3 . . . . . . . . . . . . . . 3 Projectile 518 | . 24 18 . 7 76 57 46 1 . . . 58 . 5 56 . . 62 . . 108 AOE 8 | . . 4 . . 2 . . . . . . . . . . . . . . . 2 Critical Strikes 18 | . 2 . . . 1 4 3 . . . . . . . 1 . . . . . 7 Actively Blocked 1 | . . . . . 1 . . . . . . . . . . . . . . . . Damage Taken 10122 | . 327 324 . 72 1383 925 882 15 . . . 1674 . 50 1200 42 . 875 . 24 2329 Core 2114 | . 25 42 . 8 118 66 52 . . . . 244 . 27 229 12 . 285 . . 1006 Absorbed by Shields 161 | . . . . . . . . . . . . . . . 109 11 . 41 . . . Redirected to Shielding 8 | . . . . . 8 . . . . . . . . . . . . . . . . Ignored by Resistances 14 | . . 14 . . . . . . . . . . . . . . . . . . . Regen/Repaired (Parts) 236 | . . . . . 136 . . 32 . . . . . . . . . . . 68 . Core Remaining (%) 65 | 100 . . . 70 . . 57 . . . . . 65 . . . . 34 . . . Volleys Fired 457 | . 22 14 2 6 82 60 70 7 1 10 . 68 1 15 22 1 . 10 . 21 45 Largest 2 | . 2 2 1 2 2 2 2 1 1 1 . 2 1 1 2 1 . 2 . 1 2 Hottest 260 | . 60 80 33 120 141 117 117 40 40 40 . 130 90 90 260 240 . 150 . 60 160 Shots Fired 749 | . 43 27 2 8 159 111 142 7 1 10 . 97 1 15 29 1 . 13 . 21 62 Gun 444 | . 43 27 . 6 149 50 71 . . . . 38 . . . 1 . 4 . 21 34 Cannon 275 | . . . . . 6 58 71 7 1 10 . 47 1 15 22 . . 9 . . 28 Launcher 30 | . . . 2 2 4 3 . . . . . 12 . . 7 . . . . . . Special . | . . . . . . . . . . . . . . . . . . . . . . Kinetic 278 | . 22 7 . . 56 58 71 7 1 10 . 30 . . 7 . . . . . 9 Thermal 369 | . 21 13 . 4 96 50 71 . . . . 38 1 15 22 1 . 9 . . 28 Explosive 23 | . . . 2 2 4 3 . . . . . 12 . . . . . . . . . Electromagnetic 12 | . . 7 . 2 3 . . . . . . . . . . . . . . . . Phasic 67 | . . . . . . . . . . . . 17 . . . . . 4 . 21 25 Robot Hit Streak 17 | . 5 5 . 5 17 15 13 . . . . 7 . . 8 . . 5 . 7 10 Robot Miss Streak 9 | . 3 4 . 2 4 6 9 . . . . 9 . . 1 . . 1 . 2 2 Penetration Max 1 | . . . . . . . . . . . . 1 . . . . . . . . . Secondary Targets 3 | . . 1 . . 2 . . . . . . . . . . . . . . . . Max Gunslinging Chain 1 | . . 1 . . 1 . . . . . . . . . . . . . . . . Shots Hit Robots 521 | . 26 13 . 7 118 71 121 20 9 5 . 41 . . 21 . 15 10 . 16 28 Core Hits 313 | . 14 9 . 7 64 44 93 5 4 2 . 35 . . 10 . 5 4 . 4 13 Critical Kills 3 | . 1 . . . . . . . . . . . . . . . . . . . 2 Critical Parts Destroyed 5 | . . . . . 1 . 3 . . . . . . . . . . . . . 1 Critical Strikes 28 | . 1 . . . 11 2 3 1 . 1 . 2 . . . . . 1 . 3 3 Burn 11 | . . . . . 10 . . . . . . 1 . . . . . . . . . Meltdown 1 | . . . . . . . . . . . . . . . . . . . . . 1 Destroy 4 | . 1 . . . 1 . . . . . . . . . . . . . . . 2 Blast 3 | . . . . . . 2 . . . . . 1 . . . . . . . . . Smash 3 | . . . . . . . 3 . . . . . . . . . . . . . . Sever 3 | . . . . . . . . 1 . 1 . . . . . . . 1 . . . Intensify 3 | . . . . . . . . . . . . . . . . . . . . 3 . Melee Attacks 150 | . . . . . . . 16 53 16 13 . 4 . . 12 9 19 8 . . . Impact 18 | . . . . . . . 16 2 . . . . . . . . . . . . . Slashing 132 | . . . . . . . . 51 16 13 . 4 . . 12 9 19 8 . . . Piercing . | . . . . . . . . . . . . . . . . . . . . . . Sneak Attacks 46 | . . . . . . . 3 17 6 5 . . . . 2 . 10 3 . . . Combat Hostiles . | . . . . . . . . . . . . . . . . . . . . . . Follow-up Attacks . | . . . . . . . . . . . . . . . . . . . . . . Damage Inflicted 19101 | . 269 258 . 371 2879 1998 3256 1980 854 467 . 2144 . . 1177 . 1272 521 . 660 995 Guns 6774 | . 269 122 . 101 2396 1001 1486 . . . . 457 . . . . . 66 . 660 216 Cannons 3581 | . . . . . 46 720 1065 . . . . 747 . . 350 . . 117 . . 536 Explosions 2666 | . . 136 . 265 408 277 . . . . . 882 . . 499 . . . . . 199 Melee 5975 | . . . . . . . 685 1980 854 467 . 58 . . 328 . 1272 331 . . . Ramming 105 | . . . . 5 29 . 20 . . . . . . . . . . 7 . . 44 Kinetic 3128 | . 135 33 . . 707 720 1065 . . . . 311 . . 109 . . . . . 48 Thermal 6570 | . 134 202 . 77 1693 1001 1486 . . . . 584 . . 740 . . 117 . . 536 Explosive 2010 | . . . . 265 408 277 . . . . . 861 . . . . . . . . 199 Electromagnetic 89 | . . 23 . 24 42 . . . . . . . . . . . . . . . . Impact 769 | . . . . . . . 685 84 . . . . . . . . . . . . . Slashing 5206 | . . . . . . . . 1896 854 467 . 58 . . 328 . 1272 331 . . . Piercing . | . . . . . . . . . . . . . . . . . . . . . . Phasic 1224 | . . . . . . . . . . . . 330 . . . . . 66 . 660 168 Highest Corruption 15 | . . . . 13 . 2 2 . . . . . . 1 9 9 9 15 . . 12 Average Corruption 5 | . . . . 12 . 1 2 . . . . . . 1 7 9 5 13 . . 6 Corruption Purged 9 | . . . . . . . . . . . . . . . . . 9 . . . . Corruption Blocked . | . . . . . . . . . . . . . . . . . . . . . . Effects 138 | . . . . 28 . 6 38 . . . . . . . 34 11 4 3 . . 14 Message Errors 31 | . . . . 8 . 1 10 . . . . . . . 4 3 . 2 . . 3 Matter Fused 34 | . . . . 5 . 3 10 . . . . . . . 8 3 1 1 . . 3 Heat Flow Errors 14 | . . . . 5 . . 3 . . . . . . . 5 1 . . . . . Energy Discharges 15 | . . . . 3 . . 5 . . . . . . . 4 . . . . . 3 Parts Rejected 1 | . . . . . . . . . . . . . . . 1 . . . . . . Data Loss (minor) 27 | . . . . 5 . 2 4 . . . . . . . 9 3 1 . . . 3 Data Loss (major) 7 | . . . . 1 . . 3 . . . . . . . 1 1 1 . . . . Misfires 4 | . . . . . . . 3 . . . . . . . 1 . . . . . . Alerts 4 | . . . . 1 . . . . . . . . . . 1 . 1 . . . 1 Misdirections 1 | . . . . . . . . . . . . . . . . . . . . . 1 Overload Shots 1 | . . . . . . . . . . . . . . . . 1 . . . . . Overflow Damage 2238 | . . . . . . 13 414 819 184 70 . 147 . . 12 . 537 30 . . 12 Projectiles 164 | . . . . . . 7 . . . . . 138 . . 7 . . . . . 12 Explosions 15 | . . . . . . 6 . . . . . 9 . . . . . . . . . Melee 2059 | . . . . . . . 414 819 184 70 . . . . 5 . 537 30 . . . Knockbacks 29 | . . . . . 1 5 19 . . . . 3 . . 1 . . . . . . Impact 7 | . . . . . . . 7 . . . . . . . . . . . . . . Kinetic 21 | . . . . . 1 4 12 . . . . 3 . . 1 . . . . . . Secondary 1 | . . . . . . 1 . . . . . . . . . . . . . . . Self-Inflicted Damage 90 | . . 31 . 12 . . . . . . . 24 . . . . . 3 . . 20 Shots 3 | . . 1 . 1 . . . . . . . 1 . . . . . . . . . Rammed 15 | . . . . 1 4 . 3 . . . . . . . . . . 1 . . 6 Targets Rammed 15 | . . . . 1 4 . 3 . . . . . . . . . . 1 . . 6 Kicked . | . . . . . . . . . . . . . . . . . . . . . . Crushed . | . . . . . . . . . . . . . . . . . . . . . . Highest Temperature 392 | . 183 46 . 264 392 239 200 . . . . 339 68 345 326 206 3 109 . 11 337 Average Temperature 72 | . 60 13 . 100 87 82 34 . . . . 90 13 69 118 102 1 40 . 7 101 Received Heat Transfer 2379 | . 219 40 . . 495 324 162 . . . . 486 . 12 252 . . 146 . . 243 Effects 2 | . . . . . . . . . . . . . . 1 1 . . . . . . Energy Bleed 1 | . . . . . . . . . . . . . . 1 . . . . . . . Interference 1 | . . . . . . . . . . . . . . . 1 . . . . . . Siege Activations . | . . . . . . . . . . . . . . . . . . . . . . Martial Activations . | . . . . . . . . . . . . . . . . . . . . . . Shielding Activations . | . . . . . . . . . . . . . . . . . . . . . . Robots Disrupted . | . . . . . . . . . . . . . . . . . . . . . . Combat Hostiles . | . . . . . . . . . . . . . . . . . . . . . . Robots Corrupted 5 | . . . . . . . 5 . . . . . . . . . . . . . . Combat Hostiles 1 | . . . . . . . 1 . . . . . . . . . . . . . . Parts Fried 3 | . . . . . . . 3 . . . . . . . . . . . . . . Impact Corruptions 16 | . . . . . . . 14 2 . . . . . . . . . . . . . Robots Melted 3 | . . . . . 1 . . . . . . . . . . . . . . . 2 Combat Hostiles 3 | . . . . . 1 . . . . . . . . . . . . . . . 2 Parts Melted 22 | . 1 . . . 7 1 4 . . . . . . . 2 . . . . . 7 Heat Transferred 11824 | . 300 250 . 175 3963 2100 3200 . . . . 166 . . 720 . . . . . 950 Parts Sabotaged . | . . . . . . . . . . . . . . . . . . . . . . Parts Stolen . | . . . . . . . . . . . . . . . . . . . . . . Parts Stripped . | . . . . . . . . . . . . . . . . . . . . . . Power Chain Reactions 2 | . . 1 . . . . . . . . . 1 . . . . . . . . . Alert | -11 -10 -10 -10 -9 -8 -8 -8 -7 -7 -7 -7 -7 -6 -6 -6 -6 -6 -6 -5 -5 -5 ------- Run | Yrd Mat Min Exi Min Mat Gar Mat Fac Low Low Zio Dee Pro Fac Ext Cet Arc Hub Fac Was Fac Maximum Alert Level 3 | . . . . . 1 3 2 1 . . . . . . 1 . . 2 1 . 2 Low Security (%) 71 | 100 100 100 . 100 55 10 31 89 . . . . . 100 79 100 100 59 56 100 36 Level 1 17 | . . . . . 44 16 43 10 . . . . . . 20 . . 7 43 . 48 Level 2 7 | . . . . . . 34 25 . . . . . . . . . . 33 . . 15 Level 3 2 | . . . . . . 39 . . . . . . . . . . . . . . . Level 4 . | . . . . . . . . . . . . . . . . . . . . . . Level 5 . | . . . . . . . . . . . . . . . . . . . . . . High Security . | . . . . . . . . . . . . . . . . . . . . . . Max Security . | . . . . . . . . . . . . . . . . . . . . . . Peak Influence 1000 | . 74 79 . 88 311 1000 548 257 . . . . . 34 297 153 144 566 201 89 424 Initial 487 | . . 19 . . . 167 487 249 . . . . . . . 152 4 . 201 63 . Average 147 | . 8 8 . 9 156 591 280 160 . . . . . 4 99 86 13 211 193 35 261 Influence Increases 6943 | . 117 151 . 128 826 833 1007 315 . 5 . . . 50 964 190 252 858 . 88 1159 Destroy 0b10 Robot/C 3020 | . 80 100 . 100 520 440 500 20 . . . . . . 460 80 80 260 . . 380 Destroy 0b10 Robot/NC 350 | . 5 5 . 5 40 . 75 60 . 5 . . . . 25 5 45 55 . . 25 Destroy Leader 648 | . 22 20 . 10 154 30 186 16 . . . . . . 50 . . 76 . . 84 Allied During Kill 945 | . . . . . 4 . . . . . . . . . 209 83 125 279 . . 245 Successful Hack 257 | . 10 . . . 42 12 43 32 . . . . . 6 50 . . 43 . . 19 Select Force Hacks 30 | . . . . . . . 30 . . . . . . . . . . . . . . Disable Machine 165 | . . 15 . . . 30 15 . . . . . . . . . . 30 . . 75 Anti-Garrison Action 250 | . . . . . . 250 . . . . . . . . . . . . . . . Destroy Structure 378 | . . 11 . 13 21 26 8 37 . . . . . 14 20 22 2 40 . 88 76 Partial Spotted 135 | . . . . . 15 . . 15 . . . . . 30 15 . . 15 . . 45 Lose Combat Pursuer 765 | . . . . . 30 45 150 135 . . . . . . 135 . . 60 . . 210 Influence Decreases 6540 | . 67 201 . 128 568 91 1459 759 104 5 . . . 50 691 451 264 446 231 269 756 Entered New Map 1432 | . . 31 . . . 91 513 299 40 . . . . . . 121 8 . 211 118 . Time Decay 3474 | . 57 130 . 118 507 . 636 440 64 5 . . . 40 338 170 236 206 20 141 366 Lost Part 383 | . 10 20 . 10 40 . 10 . . . . . . . 33 . . 80 . 10 170 Lost Ally 727 | . . 20 . . 21 . . 20 . . . . . 10 96 160 20 160 . . 220 Purge Threat 524 | . . . . . . . 300 . . . . . . . 224 . . . . . . Squads Dispatched 39 | . 2 . . . 5 . 5 6 . . . . . 2 1 . . 7 . . 11 Investigation 10 | . 1 . . . . . 1 2 . . . . . 1 . . . . . . 5 Extermination 8 | . . . . . . . . 2 . . . . . 1 . . . 1 . . 4 Reinforcement 18 | . 1 . . . 5 . 3 2 . . . . . . 1 . . 4 . . 2 Assault . | . . . . . . . . . . . . . . . . . . . . . . Garrison 3 | . . . . . . . 1 . . . . . . . . . . 2 . . . Intercept . | . . . . . . . . . . . . . . . . . . . . . . Searches Triggered . | . . . . . . . . . . . . . . . . . . . . . . Construction Impeded 3 | . . . . . 1 . 1 . . . . . . . . . . 1 . . . Haulers Reinforced 1 | . . . . . . . . 1 . . . . . . . . . . . . . Active Scanning Responses . | . . . . . . . . . . . . . . . . . . . . . . Cargo Convoy Interrupts . | . . . . . . . . . . . . . . . . . . . . . . Stealth | -11 -10 -10 -10 -9 -8 -8 -8 -7 -7 -7 -7 -7 -6 -6 -6 -6 -6 -6 -5 -5 -5 --------- Run | Yrd Mat Min Exi Min Mat Gar Mat Fac Low Low Zio Dee Pro Fac Ext Cet Arc Hub Fac Was Fac Distress Signals 16 | . . . . . 5 . 2 4 . . . . . 1 . 1 . 2 . . 1 Communications Jammed . | . . . . . . . . . . . . . . . . . . . . . . Distress Signals . | . . . . . . . . . . . . . . . . . . . . . . Times Spotted 262 | . 8 7 . 5 36 21 51 5 . 2 . 17 . 6 29 4 9 22 1 . 39 Peak Tracking Total 9 | . 3 3 9 4 5 5 4 4 . 2 . 5 . 3 7 5 2 6 1 . 8 Tactical Retreats 34 | . . . . . 2 2 5 6 . . . . . 1 5 . . 3 . . 10 Traps | -11 -10 -10 -10 -9 -8 -8 -8 -7 -7 -7 -7 -7 -6 -6 -6 -6 -6 -6 -5 -5 -5 ------- Run | Yrd Mat Min Exi Min Mat Gar Mat Fac Low Low Zio Dee Pro Fac Ext Cet Arc Hub Fac Was Fac Traps Triggered 12 | . . . . . . 3 . . . . . . . . 5 . . 2 1 . 1 Indirectly . | . . . . . . . . . . . . . . . . . . . . . . Trap Hack Attempts . | . . . . . . . . . . . . . . . . . . . . . . Triggered . | . . . . . . . . . . . . . . . . . . . . . . Disarmed 12 | . . . . . . . . . . . . . . . 6 . . 6 . . . Reprogrammed . | . . . . . . . . . . . . . . . . . . . . . . Reused . | . . . . . . . . . . . . . . . . . . . . . . Traps Extracted . | . . . . . . . . . . . . . . . . . . . . . . Installed . | . . . . . . . . . . . . . . . . . . . . . . Triggered . | . . . . . . . . . . . . . . . . . . . . . . Objects Rigged 1 | . . . . . . . . . . . . . . . . . . . . . 1 Exploded 1 | . . . . . . . . . . . . . . . . . . . . . 1 Time Bombs Activated 1 | . . . . . . . . . . . . . . . . . . 1 . . . Exploded 1 | . . . . . . . . . . . . . . . . . . 1 . . . Machines | -11 -10 -10 -10 -9 -8 -8 -8 -7 -7 -7 -7 -7 -6 -6 -6 -6 -6 -6 -5 -5 -5 ---------- Run | Yrd Mat Min Exi Min Mat Gar Mat Fac Low Low Zio Dee Pro Fac Ext Cet Arc Hub Fac Was Fac Machines Disabled 18 | . . 1 2 . . 4 1 . 1 . . 1 . . 1 . . 2 . . 5 Max in Single Turn 1 | . . 1 1 . . 1 1 . 1 . . 1 . . . . . . . . 1 Garrison Access 3 | . . . . . . . . 1 . . . . . 1 . . . . . . 1 Garrison Relay 2 | . . . . . . 2 . . . . . . . . . . . . . . . Network Hub 1 | . . . . . . . . . . . . . . . . . . 1 . . . Machines Repaired . | . . . . . . . . . . . . . . . . . . . . . . Machines Dismantled . | . . . . . . . . . . . . . . . . . . . . . . Machines Sabotaged . | . . . . . . . . . . . . . . . . . . . . . . Overloaded Fab Kills . | . . . . . . . . . . . . . . . . . . . . . . Hacking | -11 -10 -10 -10 -9 -8 -8 -8 -7 -7 -7 -7 -7 -6 -6 -6 -6 -6 -6 -5 -5 -5 --------- Run | Yrd Mat Min Exi Min Mat Gar Mat Fac Low Low Zio Dee Pro Fac Ext Cet Arc Hub Fac Was Fac Machines Accessed 79 | . 1 1 2 1 10 3 13 10 1 1 . . . 7 15 1 . 4 . . 9 Terminals 50 | . 1 . . . 6 3 9 4 . . . . . 5 15 1 . 4 . . 2 Fabricators 10 | . . . . . . . . 3 . . . . . 1 . . . . . . 6 Repair Stations 4 | . . . . . 1 . 2 1 . . . . . . . . . . . . . Recycling Units 2 | . . . . . . . 1 1 . . . . . . . . . . . . . Scanalyzers 3 | . . . . . 2 . 1 . . . . . . . . . . . . . . Garrison Access 4 | . . . . . 1 . . 1 . . . . . 1 . . . . . . 1 Total Hacks 308 | . 7 1 2 1 67 8 42 34 1 1 . . . 31 55 3 . 21 . . 34 Successful 194 | . 3 1 2 1 52 3 29 23 1 1 . . . 19 29 . . 9 . . 21 Failed 113 | . 4 . . . 14 5 13 11 . . . . . 12 26 3 . 12 . . 13 Catastrophic 10 | . . . . . 1 . . . . . . . . . 3 . . 2 . . 4 Database Lockouts 1 | . . . . . 1 . . . . . . . . . . . . . . . . Manual 177 | . 7 . 1 . 27 3 19 16 . . 5 . . 19 42 1 . 19 . . 18 Terminals 202 | . 7 . . . 28 8 31 14 . . . . . 25 55 3 . 21 . . 10 Fabricators 35 | . . . . . . . . 10 . . . . . 4 . . . . . . 21 Repair Stations 8 | . . . . . 2 . 4 2 . . . . . . . . . . . . . Recycling Units 6 | . . . . . . . 1 5 . . . . . . . . . . . . . Scanalyzers 42 | . . . . . 36 . 6 . . . . . . . . . . . . . . Garrison Access 9 | . . . . . 1 . . 3 . . . . . 2 . . . . . . 3 Terminal Hacks 75 | . 1 1 2 1 7 2 10 7 1 1 . . . 10 24 . . 5 . . 3 Record 1 | . . . 1 . . . . . . . . . . . . . . . . . . Part Schematic 4 | . . . . . . . . . . . . . . 2 2 . . . . . . Robot Schematic 1 | . . . . . . . . . . . . . . . 1 . . . . . . Robot Analysis 12 | . . . . . 4 . . 3 . . . . . 1 4 . . . . . . Prototype ID Bank 4 | . . . . . . . 1 . . . . . . 2 1 . . . . . . Open Door 14 | . . 1 . 1 . . . . 1 1 . . . 1 9 . . . . . . Branch Access Points 2 | . . . . . . . . . . . . . . 1 . . . . . . 1 Emergency Access Points 1 | . . . . . . 1 . . . . . . . . . . . . . . . Terminal Index 4 | . . . . . . . . 1 . . . . . 1 1 . . 1 . . . Alert Level 2 | . . . . . . . 1 . . . . . . . 1 . . . . . . Unreport Threat 4 | . . . . . . . 2 . . . . . . . 2 . . . . . . Locate Traps 9 | . . . . . . . 5 . . . . . . 1 2 . . . . . 1 Disarm Traps 2 | . . . . . . . . . . . . . . . 1 . . 1 . . . Security Status 2 | . . . . . . . 1 . . . . . . . . . . 1 . . . Garrison Status 1 | . . . . . 1 . . . . . . . . . . . . . . . . Recall Extermination 1 | . . . . . . . . 1 . . . . . . . . . . . . . Recall Reinforcements 1 | . . . . . . . . 1 . . . . . . . . . . . . . Hauler Manifests 1 | . . . . . . . . . . . . . . 1 . . . . . . . Registered Components 1 | . . . . . 1 . . . . . . . . . . . . . . . . Zone Layout 6 | . 1 . . . 1 . . 1 . . . . . . . . . 2 . . 1 Garrison Registry 1 | . . . . . . 1 . . . . . . . . . . . . . . . Proto ID Catalog 1 | . . . 1 . . . . . . . . . . . . . . . . . . Fabricator Hacks 17 | . . . . . . . . 7 . . . . . 2 . . . . . . 8 Network Status 3 | . . . . . . . . 1 . . . . . 1 . . . . . . 1 Load Schematic 11 | . . . . . . . . 4 . . . . . 1 . . . . . . 6 Build 3 | . . . . . . . . 2 . . . . . . . . . . . . 1 Repair Station Hacks 7 | . . . . . 2 . 3 2 . . . . . . . . . . . . . Scan Component 4 | . . . . . 1 . 2 1 . . . . . . . . . . . . . Repair 3 | . . . . . 1 . 1 1 . . . . . . . . . . . . . Recycling Unit Hacks . | . . . . . . . . . . . . . . . . . . . . . . Scanalyzer 41 | . . . . . 35 . 6 . . . . . . . . . . . . . . Insert Component 18 | . . . . . 15 . 3 . . . . . . . . . . . . . . Analyze 23 | . . . . . 20 . 3 . . . . . . . . . . . . . . Garrison Access Hacks 4 | . . . . . 1 . . 1 . . . . . 1 . . . . . . 1 Unlock Access 1 | . . . . . 1 . . . . . . . . . . . . . . . . Seal Access 3 | . . . . . . . . 1 . . . . . 1 . . . . . . 1 Unauthorized Hacks 50 | . 2 . . . 7 1 10 6 . . . . . 6 5 . . 4 . . 9 Terminals 38 | . 2 . . . 7 1 9 1 . . . . . 6 5 . . 4 . . 3 Assimilate 2 | . . . . . . . 1 . . . . . . 1 . . . . . . . Botnet 9 | . 1 . . . 2 . 3 . . . . . . 2 . . . 1 . . . Detonate 2 | . . . . . . . . . . . . . . . . . . 1 . . 1 Operators 2 | . . . . . . . . 1 . . . . . 1 . . . . . . . Skim 22 | . 1 . . . 5 . 5 . . . . . . 2 5 . . 2 . . 2 Override 1 | . . . . . . 1 . . . . . . . . . . . . . . . Fabricators 8 | . . . . . . . . 2 . . . . . . . . . . . . 6 Prioritize 1 | . . . . . . . . . . . . . . . . . . . . . 1 Liberate 1 | . . . . . . . . . . . . . . . . . . . . . 1 Haulers 1 | . . . . . . . . . . . . . . . . . . . . . 1 Recompile 5 | . . . . . . . . 2 . . . . . . . . . . . . 3 Repair Stations . | . . . . . . . . . . . . . . . . . . . . . . Recycling Units 4 | . . . . . . . 1 3 . . . . . . . . . . . . . Monitor 1 | . . . . . . . . 1 . . . . . . . . . . . . . Reject 1 | . . . . . . . . 1 . . . . . . . . . . . . . Mask 1 | . . . . . . . . 1 . . . . . . . . . . . . . Tunnel 1 | . . . . . . . 1 . . . . . . . . . . . . . . Scanalyzers . | . . . . . . . . . . . . . . . . . . . . . . Garrison Access . | . . . . . . . . . . . . . . . . . . . . . . Data Cores Recovered 1 | . . . . . . . . . . . . . . . . . . 1 . . . Used 1 | . . . . . . . . . . . . . . . . . . 1 . . . Hacking Detections 48 | . 1 . . . 8 3 9 6 . . . . . 5 6 2 . 4 . . 4 Full Trace Events 6 | . 1 . . . . 2 . . . . . . . 1 . . . . . . 2 Feedback Events 2 | . . . . . . 1 . . . . . . . 1 . . . . . . . Corruption 2 | . . . . . . 1 . . . . . . . 1 . . . . . . . Feedback Blocked . | . . . . . . . . . . . . . . . . . . . . . . Robot Schematics Acquired 1 | . . . . . . . . . . . . . . . 1 . . . . . . Robots Built . | . . . . . . . . . . . . . . . . . . . . . . Authchips . | . . . . . . . . . . . . . . . . . . . . . . Time . | . . . . . . . . . . . . . . . . . . . . . . Total Robot Build Rating . | . . . . . . . . . . . . . . . . . . . . . . Part Schematics Acquired 19 | . . . . . 13 . 2 . . . . . . 2 2 . . . . . . Parts Built 6 | . . . . . . . . 4 . . . . . . . . . . . . 2 Authchips 3 | . . . . . . . . 2 . . . . . . . . . . . . 1 Time 179 | . . . . . . . . 62 . . . . . . . . . . . . 117 Total Part Build Rating 34 | . . . . . . . . 20 . . . . . . . . . . . . 14 Parts Repaired 3 | . . . . . 1 . 1 1 . . . . . . . . . . . . . Time 190 | . . . . . 60 . 70 60 . . . . . . . . . . . . . Parts Recycled . | . . . . . . . . . . . . . . . . . . . . . . Recycled Matter . | . . . . . . . . . . . . . . . . . . . . . . Retrieved Matter . | . . . . . . . . . . . . . . . . . . . . . . Retrieved Components . | . . . . . . . . . . . . . . . . . . . . . . Parts Scanalyzed 18 | . . . . . 15 . 3 . . . . . . . . . . . . . . Part Schematics Acquired 15 | . . . . . 13 . 2 . . . . . . . . . . . . . . Parts Damaged 2 | . . . . . 1 . 1 . . . . . . . . . . . . . . Bothacking | -11 -10 -10 -10 -9 -8 -8 -8 -7 -7 -7 -7 -7 -6 -6 -6 -6 -6 -6 -5 -5 -5 ------------ Run | Yrd Mat Min Exi Min Mat Gar Mat Fac Low Low Zio Dee Pro Fac Ext Cet Arc Hub Fac Was Fac Used RIF Installer . | . . . . . . . . . . . . . . . . . . . . . . Robots Hacked . | . . . . . . . . . . . . . . . . . . . . . . Non-combat . | . . . . . . . . . . . . . . . . . . . . . . Combat . | . . . . . . . . . . . . . . . . . . . . . . Robot Hacks Applied . | . . . . . . . . . . . . . . . . . . . . . . Relay Couplers Released 12 | . . . . . . 12 . . . . . . . . . . . . . . . Machine Destruction 9 | . . . . . . 9 . . . . . . . . . . . . . . . Programmers 3 | . . . . . . 3 . . . . . . . . . . . . . . . Fabnet Peak Effective % . | . . . . . . . . . . . . . . . . . . . . . . Robots Rewired 10 | . . . . . . . . 1 . . . . . . 9 . . . . . . Allies Hacked . | . . . . . . . . . . . . . . . . . . . . . . Hacks Repelled . | . . . . . . . . . . . . . . . . . . . . . . Allies | -11 -10 -10 -10 -9 -8 -8 -8 -7 -7 -7 -7 -7 -6 -6 -6 -6 -6 -6 -5 -5 -5 -------- Run | Yrd Mat Min Exi Min Mat Gar Mat Fac Low Low Zio Dee Pro Fac Ext Cet Arc Hub Fac Was Fac Total Allies 56 | . . 2 . 2 . . . 1 . . 2 . . 1 24 5 . . . 19 . Largest Group 19 | . . 1 1 2 2 . . 1 . . 2 2 . 1 18 18 15 13 . 19 14 Highest-Rated Group 883 | . . 31 31 41 41 . . 16 . . 192 192 . 10 637 883 883 634 . 684 503 Highest-Rated Ally 159 | . . 31 31 31 31 . . 16 . . 96 96 . 10 159 153 153 96 . 50 46 Initial Warlord ECA Mod 34 | . . . . . . . 4 3 3 3 3 3 2 2 2 2 2 2 1 1 1 Total Orders 10 | . . . . . . . . . . . . . . 2 . . 4 4 . . . STAY 5 | . . . . . . . . . . . . . . 1 . . . 4 . . . ROAM 2 | . . . . . . . . . . . . . . . . . 2 . . . . FOLLOW 3 | . . . . . . . . . . . . . . 1 . . 2 . . . . Ally Attacks 546 | . . . . . 19 . . . . . . 28 . . 130 55 24 93 . 77 120 Total Damage 13372 | . . . . . 229 . . . . . . 549 . . 3043 1002 703 2833 . 2896 2117 Kills 78 | . . . . . . . . . . . . 3 . . 22 5 4 20 . 7 17 Allies Corrupted 1 | . . . . . . . . . . . . . . . . . . 1 . . . Allies Melted . | . . . . . . . . . . . . . . . . . . . . . . Intel | -11 -10 -10 -10 -9 -8 -8 -8 -7 -7 -7 -7 -7 -6 -6 -6 -6 -6 -6 -5 -5 -5 ------- Run | Yrd Mat Min Exi Min Mat Gar Mat Fac Low Low Zio Dee Pro Fac Ext Cet Arc Hub Fac Was Fac Active Infowar (turns) 6515 | . . 532 782 229 514 . 16 1094 575 716 3 740 307 255 251 . . . 1 . 500 Sensors 3982 | . . . . . . . 16 917 573 716 1 575 295 247 251 . . . . . 391 Terrain 4279 | . . 532 782 229 171 . . 3 570 713 2 362 307 211 251 . . . . . 146 Seismic 453 | . . . . . 343 . . . . . . . . . . . . . . . 110 ECM 235 | . . . . . . . . 176 . . . . . 44 . . . . 1 . 14 Robot Analysis Total 12 | . . . . . 4 . . 3 . . . . . 1 4 . . . . . . Derelict Logs Recovered 4 | . . 1 . 1 . . . . . . 2 . . . . . . . . . . Drone Launches . | . . . . . . . . . . . . . . . . . . . . . . Drone Recoveries . | . . . . . . . . . . . . . . . . . . . . . . Exploration | -11 -10 -10 -10 -9 -8 -8 -8 -7 -7 -7 -7 -7 -6 -6 -6 -6 -6 -6 -5 -5 -5 ------------- Run | Yrd Mat Min Exi Min Mat Gar Mat Fac Low Low Zio Dee Pro Fac Ext Cet Arc Hub Fac Was Fac Turns Passed 19957 | 3 879 1089 800 969 1732 1090 2259 1099 576 724 755 1095 307 255 1267 359 2876 475 46 401 901 Spaces Moved 12911 | 1 140 598 490 433 759 547 1276 1457 464 654 1059 895 371 313 799 143 587 460 67 268 1130 Core 503 | . . . . . . . . . . . . . . . . . 262 3 . . 238 Treads 3894 | . 55 598 490 433 759 547 1012 . . . . . . . . . . . . . . Legs 86 | 1 85 . . . . . . . . . . . . . . . . . . . . Wheels . | . . . . . . . . . . . . . . . . . . . . . . Hover 8428 | . . . . . . . 264 1457 464 654 1059 895 371 313 799 143 325 457 67 268 892 Flight . | . . . . . . . . . . . . . . . . . . . . . . Fastest Speed 40 | 120 120 160 160 160 160 162 45 45 56 56 56 56 65 65 65 74 58 50 60 50 40 Average Speed 110 | 120 135 160 160 215 174 162 139 46 59 56 56 70 65 65 95 74 434 68 60 62 47 Slowest Speed 900 | 120 160 160 160 240 240 162 166 66 66 56 56 144 65 65 144 74 900 150 60 240 112 Overloaded Moves . | . . . . . . . . . . . . . . . . . . . . . . Propulsion Burnouts . | . . . . . . . . . . . . . . . . . . . . . . Robots Hopped 1 | . . . . . . . . . . . . . . . . . . 1 . . . Potential Cave-ins . | . . . . . . . . . . . . . . . . . . . . . . Cave-ins Triggered 2 | . . . . . . . . . . . . . . . 2 . . . . . . Exploration Rate (%) 57 | 2 24 94 70 85 69 66 83 24 56 74 86 83 58 7 83 59 84 45 3 83 30 Regions Visited 21 Branch Regions 12 Pre-discovered Areas 11 | . . 1 1 1 2 . 2 . 1 . 1 . . . 2 . . . . . . Known Exits Taken 13 | . . . . . 1 . 1 1 1 1 1 1 1 1 1 1 1 1 . . . Unknown Exits Taken 5 | 1 1 1 1 1 . . . . . . . . . . . . . . . . . Scrap Searched 11 | . . 1 . 1 . . . . 3 1 3 . 2 . . . . . . . . Spaces Dug 137 | . . . . . 16 . 3 37 7 16 . 2 1 12 9 9 2 8 . . 15 Terrain Destroyed 273 | . . 11 13 16 26 1 7 37 7 16 . 39 1 15 14 10 2 10 . 1 47 Melee 68 | . . . . . . . 3 33 6 8 . . . . 4 9 2 3 . . . Projectile 85 | . . . . . 1 . 4 4 1 8 . 15 1 15 10 1 . 7 . 1 17 AOE 120 | . . 11 13 16 25 1 . . . . . 24 . . . . . . . . 30 Terrain Rammed . | . . . . . . . . . . . . . . . . . . . . . . Walls Destroyed . | . . . . . . . . . . . . . . . . . . . . . . Machines Disabled . | . . . . . . . . . . . . . . . . . . . . . . Actions | -11 -10 -10 -10 -9 -8 -8 -8 -7 -7 -7 -7 -7 -6 -6 -6 -6 -6 -6 -5 -5 -5 --------- Run | Yrd Mat Min Exi Min Mat Gar Mat Fac Low Low Zio Dee Pro Fac Ext Cet Arc Hub Fac Was Fac Total 17517 | 3 793 704 504 456 1013 635 1580 1769 731 974 1222 1250 436 344 1254 381 884 591 72 482 1439 Wait 3254 | . 618 82 1 9 68 9 171 184 229 282 131 227 57 9 293 220 241 80 . 166 177 Move 12886 | . 139 597 489 432 759 542 1275 1456 463 653 1058 894 370 312 798 142 586 457 67 267 1130 Hop 1 | . . . . . . . . . . . . . . . . . . 1 . . . Pick Up 113 | . 2 7 5 3 23 3 7 17 4 . 9 5 4 2 2 1 7 . 2 1 9 Fast Attach 107 | . 3 1 2 . 15 2 10 3 3 4 4 13 . . 4 2 11 6 . 11 13 Attach 74 | . 2 2 1 1 8 . 7 10 2 2 1 10 . 2 4 2 4 1 2 1 12 Detach 50 | . 3 . 1 . 7 1 5 3 1 2 2 6 . . 2 . 3 2 . 1 11 Swap 111 | 1 . 1 1 4 21 10 2 17 5 4 6 11 1 4 5 1 2 2 1 . 12 Drop 168 | 2 4 . 2 . 26 8 14 17 5 4 11 12 3 . 2 3 11 6 . 14 24 Fire 457 | . 22 14 2 6 82 60 70 7 1 10 . 68 1 15 22 1 . 10 . 21 45 Melee 150 | . . . . . . . 16 53 16 13 . 4 . . 12 9 19 8 . . . Ram 7 | . . . . . . . . . . . . . . . . . . 1 . . 6 Kick . | . . . . . . . . . . . . . . . . . . . . . . Crush 8 | . . . . 1 4 . 3 . . . . . . . . . . . . . . Escape Stasis 72 | . . . . . . . . . . . . . . . 56 . . 16 . . . Rewire 58 | . . . . . . . . 2 2 . . . . . 54 . . . . . . Trap 1 | . . . . . . . . . . . . . . . . . . 1 . . . Miscellaneous . | . . . . . . . . . . . . . . . . . . . . . . Route ------- -11/Scrapyard -10/Materials -10/Mines (discovered 4 exits: [*Mat x2] / *Exi / [*Sub]) -10/Exiles -9/Mines -8/Materials (discovered 4 exits: *Fac x3 / Gar) -8/Garrison (discovered 3 exits: *Mat x3) -8/Materials (discovered 3 exits: *Fac x3) -7/Factory (discovered 4 exits: Fac x2 / *Low x2) -7/Lower Caves -7/Lower Caves -7/Zion (discovered 2 exits: *Dee / [*Pro]) -7/Deep Caves -6/Proximity Caves -6/Factory (discovered 5 exits: *Fac / *Low x2 / *Ext x2) -6/Extension (discovered 2 exits: *Fac / *Cet) -6/Cetus -6/Archives (discovered 3 exits: *Fac / *Hub x2) -6/Hub_04(d) -5/Factory -5/Waste -5/Factory (discovered 4 exits: *Fac x2 / Upp x2) History --------- Turn | Location | Event 4 | -11/Scrapyard | Discovered new exit (range 0) 4 | -11/Scrapyard | Entered Materials 318 | -10/Materials | Build established: Mutant 844 | -10/Materials | Discovered new exit (range 12) 883 | -10/Materials | Entered Mines 920 | -10/Mines | Assembled infested the area 925 | -10/Mines | Assisted by a Guerilla fighting off Assembled 995 | -10/Mines | Escorted by a lone wolf Derelict 1250 | -10/Mines | Found the Drone Emporium 1257 | -10/Mines | Found Prototype Device 1306 | -10/Mines | Learned location of Storage (-9) 1443 | -10/Mines | Discovered new exit (range 8) 1609 | -10/Mines | Discovered new exit (range 8) 1624 | -10/Mines | Received a Rocket Launcher from a helpful Derelict 1881 | -10/Mines | Discovered new exit (range 9) 1954 | -10/Mines | Received a Mining Laser from a helpful Derelict 1964 | -10/Mines | Deemed a non-threat by the Exiles lab entrance 1966 | -10/Mines | Discovered new exit (range 5) 1972 | -10/Mines | Entered Exiles 1972 | -10/Exiles | Accompanied by 1 ally 2011 | -10/Exiles | Met 8R-AWN 2040 | -10/Exiles | Met EX-HEX 2099 | -10/Exiles | Met EX-DEC 2110 | -10/Exiles | Learned location of Zion (-7) 2142 | -10/Exiles | Met EX-BIN 2164 | -10/Exiles | Aligned with FarCom system 2166 | -10/Exiles | Given EX-Vault access code 2206 | -10/Exiles | Opened EX-Vault 2231 | -10/Exiles | Identified Bomb Drone Bay 2293 | -10/Exiles | Warned to stay clear of 0b10 Research branches 2747 | -10/Exiles | Attacked by the Exiles 2757 | -10/Exiles | Discovered new exit (range 11) 2772 | -10/Exiles | Entered Mines 2804 | -9/Mines | Met a Derelict who couldn't figure out how to use a Trap Extractor 3022 | -9/Mines | System corruption reached 10% 3138 | -9/Mines | Discovered new exit (range 10) 3741 | -9/Mines | Entered Materials 3741 | -8/Materials | Accompanied by 2 allies 3741 | -8/Materials | Evolved 4 slots: Propulsion x2, Utility x2 3746 | -8/Materials | Led the pair of lost Derelicts to an unsafe place 3878 | -8/Materials | Central database locked down 4261 | -8/Materials | Discovered new exit (range 13) 4407 | -8/Materials | Found Powered Armor 4411 | -8/Materials | Found Powered Armor 4414 | -8/Materials | Found Powered Armor 4456 | -8/Materials | Found Powered Armor 4495 | -8/Materials | Build established: Scavenger-Mutant 4839 | -8/Materials | Repaired Enh. Autogun? 4909 | -8/Materials | Discovered new exit (range 11) 5177 | -8/Materials | Learned 4 Lower Caves zone layouts 5211 | -8/Materials | Identified exit to Factory 5237 | -8/Materials | Learned Storage emergency access door positions 5255 | -8/Materials | Learned location of Extension (-6) 5257 | -8/Materials | Learned Factory recycling unit intel 5258 | -8/Materials | Learned Recycling recycling unit intel 5473 | -8/Materials | Identified exit to Garrison 5473 | -8/Materials | Entered Garrison 5636 | -8/Garrison | Triggered checkpoint 5773 | -8/Garrison | Discovered new exit (range 31) 5773 | -8/Garrison | Discovered new exit (range 64) 5773 | -8/Garrison | Discovered new exit (range 44) 5953 | -8/Garrison | Attempted to access garrison exit controls, blocked by remote lockdown 6044 | -8/Garrison | Garrison Relay disabled 6057 | -8/Garrison | Garrison Relay disabled 6197 | -8/Garrison | Identified exit to Materials 6383 | -8/Garrison | Triggered checkpoint 6563 | -8/Garrison | Entered Materials 7804 | -8/Materials | Learned Storage garrison access intel 7860 | -8/Materials | Learned Factory stockpile data 7874 | -8/Materials | Learned location of 2 exits from Factory 7890 | -8/Materials | Learned location of Lower Caves (-7) 8285 | -8/Materials | Garrison activated, responded to threat 8387 | -8/Materials | Build established: Mutant 8480 | -8/Materials | Repaired Broken Gravmag Array 8822 | -8/Materials | Entered Factory 8822 | -7/Factory | Evolved 2 slots: Utility x2 8823 | -7/Factory | Identified exit to Lower Caves 8824 | -7/Factory | Identified exit to Factory 8826 | -7/Factory | Loaded intel: 6 recycling unit locations 8917 | -7/Factory | Found Powered Armor 9116 | -7/Factory | Build established: Hacker-Mutant 9538 | -7/Factory | Repaired Aerolev Unit? 9759 | -7/Factory | Fabricated Cmb. Airjet? 9853 | -7/Factory | Fabricated Cmb. Airjet? 9921 | -7/Factory | Entered Lower Caves 10055 | -7/Lower Caves | Met a Warlord Commander 10056 | -7/Lower Caves | Learned location of Warlord (-5) 10057 | -7/Lower Caves | Warlord Commander delivered Encrypted Comm Array 10064 | -7/Lower Caves | Found Encrypted Comm Array 10086 | -7/Lower Caves | Found Alien Artifact 10086 | -7/Lower Caves | Identified Core Expander 10086 | -7/Lower Caves | Installed Core Expander, added new Propulsion slot 10205 | -7/Lower Caves | Build established: Scout 10210 | -7/Lower Caves | Found Prototype Device 10215 | -7/Lower Caves | Murdered Warlord Statue 10292 | -7/Lower Caves | Discovered new exit (range 20) 10494 | -7/Lower Caves | Identified exit to Lower Caves 10497 | -7/Lower Caves | Entered another Lower Caves area 11132 | -7/Lower Caves | Entered a destroyed Warlord outpost 11176 | -7/Lower Caves | Discovered new exit (range 14) 11221 | -7/Lower Caves | Identified exit to Zion 11221 | -7/Lower Caves | Entered Zion 11258 | -7/Zion | Discovered new exit (range 12) 11312 | -7/Zion | Identified exit to Deep Caves 11351 | -7/Zion | Acquired unknown access codes intercepted by a Zionite 11353 | -7/Zion | Given A8's code to call for help 11394 | -7/Zion | Learned 4 Factory zone layouts 11475 | -7/Zion | Met Imprinter 11505 | -7/Zion | Build established: Mutant 11555 | -7/Zion | Found Prototype Device 11555 | -7/Zion | Identified Phasing AFG 11671 | -7/Zion | Identified Heart of Steel 11672 | -7/Zion | Found Prototype Processor 11673 | -7/Zion | Found Prototype Hackware 11674 | -7/Zion | Identified Exp. Target Analyzer 11757 | -7/Zion | Identified Exp. System Shield 11913 | -7/Zion | Opened final containment barrier to the Deep Caves 11922 | -7/Zion | Enhanced Grunt warped into view, answering call for help 11943 | -7/Zion | Enhanced Grunt warped into view, answering call for help 11964 | -7/Zion | Saw the warning signs outside the Deep Caves entrance 11976 | -7/Zion | Entered Deep Caves 11976 | -7/Deep Caves | Accompanied by 2 allies 12150 | -7/Deep Caves | Attacked by Z-Imprinter 12237 | -7/Deep Caves | Lost 5 parts (1n2u2w) 12305 | -7/Deep Caves | Z-Facility disabled 12420 | -7/Deep Caves | Found Prototype Protection 12420 | -7/Deep Caves | Identified Zio. Weapon Casing 12429 | -7/Deep Caves | Found Zio. Weapon Casing 12579 | -7/Deep Caves | Discovered new exit (range 6) 12582 | -7/Deep Caves | Identified exit to Proximity Caves 13014 | -7/Deep Caves | Spotted AG-76946 13071 | -7/Deep Caves | Entered Proximity Caves 13140 | -6/Proximity Caves | Encountered a Derelict sapper outpost 13362 | -6/Proximity Caves | Discovered exit to Factory (range 6) 13373 | -6/Proximity Caves | Build established: Scout 13378 | -6/Proximity Caves | Entered Factory 13378 | -6/Factory | Evolved 2 slots: Utility x2 13379 | -6/Factory | Identified exit to Extension 13393 | -6/Factory | Discovered new exit (range 3) 13395 | -6/Factory | Identified exit to Lower Caves 13513 | -6/Factory | Discovered new exit (range 7) 13517 | -6/Factory | Identified exit to Factory 13633 | -6/Factory | Entered Extension 13884 | -6/Extension | Crushed by falling debris 13889 | -6/Extension | Crushed by falling debris 13939 | -6/Extension | Rescued A7 13950 | -6/Extension | Lost 4 parts (2n2u) 14119 | -6/Extension | Rescued a captive Derelict 14120 | -6/Extension | Rescued a captive Derelict 14183 | -6/Extension | Rescued a captive Derelict 14186 | -6/Extension | Build established: Hacker-Mutant 14401 | -6/Extension | Spotted B-75 Beast 14420 | -6/Extension | Spotted B-75 Beast 14426 | -6/Extension | Allies destroyed B-75 Beast 14459 | -6/Extension | Allies destroyed B-75 Beast 14472 | -6/Extension | Lost 3 allies 14516 | -6/Extension | Rescued a captive Derelict 14516 | -6/Extension | Rescued a captive Derelict 14633 | -6/Extension | Rescued a captive Derelict 14636 | -6/Extension | Rescued a captive Derelict 14643 | -6/Extension | Rescued a captive Derelict 14644 | -6/Extension | Rescued a captive Derelict 14653 | -6/Extension | Rescued a captive Derelict 14653 | -6/Extension | Rescued a captive Derelict 14666 | -6/Extension | Rescued a captive Derelict 14739 | -6/Extension | Rescued a captive Derelict 14739 | -6/Extension | Rescued a captive Derelict 14741 | -6/Extension | Learned 2 Upper Caves zone layouts 14770 | -6/Extension | Discovered exit to Factory (range 10) 14771 | -6/Extension | Discovered new exit (range 6) 14797 | -6/Extension | Identified exit to Cetus 14827 | -6/Extension | Learned location of 2 exits from Lower Caves 14856 | -6/Extension | Learned 2 Upper Caves zone layouts 14900 | -6/Extension | Entered Cetus 14900 | -6/Cetus | Accompanied by 18 allies (A7) 14905 | -6/Cetus | Acquired a Cetus Manufacturing Module code from A7 14927 | -6/Cetus | Spotted Cetus Guard 14927 | -6/Cetus | Spotted Cetus Guard 14936 | -6/Cetus | Spotted Cetus Guard 14941 | -6/Cetus | Allies destroyed Cetus Guard 14942 | -6/Cetus | Spotted Cetus Guard 14951 | -6/Cetus | Allies destroyed Cetus Guard 14953 | -6/Cetus | Allies destroyed Cetus Guard 14982 | -6/Cetus | Lost 8 allies 14992 | -6/Cetus | Started Cetus Manufacturing Module 15017 | -6/Cetus | Manufactured an Enhanced Grunt 15025 | -6/Cetus | Escorted A7 to Cetus Mainframe 15036 | -6/Cetus | Discovered new exit (range 16) 15042 | -6/Cetus | Manufactured an Enhanced Grunt 15046 | -6/Cetus | Identified exit to Archives 15067 | -6/Cetus | Manufactured an Enhanced Grunt 15092 | -6/Cetus | Manufactured an Enhanced Grunt 15117 | -6/Cetus | Manufactured an Enhanced Grunt 15259 | -6/Cetus | Entered Archives 15259 | -6/Archives | Accompanied by 15 allies (A7) 15264 | -6/Archives | Received a hacking code to weaken MAIN.C 15334 | -6/Archives | Discovered new exit (range 13) 15353 | -6/Archives | Discovered exit to Factory (range 15) 15379 | -6/Archives | Build established: Commander-Mutant 15410 | -6/Archives | Discovered new exit (range 16) 15673 | -6/Archives | Identified exit to Hub_04(d) 18135 | -6/Archives | Entered Hub_04(d) 18135 | -6/Hub_04(d) | Accompanied by 13 allies 18353 | -6/Hub_04(d) | Found Prototype Launcher 18353 | -6/Hub_04(d) | Identified Scatter Rocket Array 18355 | -6/Hub_04(d) | Found Scatter Rocket Array 18439 | -6/Hub_04(d) | Garrison activated, responded to threat 18447 | -6/Hub_04(d) | Discovered exit to Factory (range 17) 18542 | -6/Hub_04(d) | Network Hub disabled 18547 | -6/Hub_04(d) | System corruption reached 10% 18550 | -6/Hub_04(d) | Spotted Lightning 18551 | -6/Hub_04(d) | Spotted Lightning 18553 | -6/Hub_04(d) | Core integrity fell below 50% 18553 | -6/Hub_04(d) | Spotted Lightning 18575 | -6/Hub_04(d) | Lost 6 parts (5n1u) 18610 | -6/Hub_04(d) | Entered Factory 18610 | -5/Factory | Evolved 2 slots: Power x1, Propulsion x1 18656 | -5/Factory | Sucked down chute 18656 | -5/Factory | Entered Waste 18668 | -5/Waste | Warlord forces began an assault 18722 | -5/Waste | Spotted C-40 Crusher 18742 | -5/Waste | Spotted C-40 Crusher 18745 | -5/Waste | Allies destroyed C-40 Crusher 18751 | -5/Waste | Spotted C-40 Crusher 18753 | -5/Waste | Allies destroyed C-40 Crusher 18756 | -5/Waste | Spotted C-40 Crusher 18801 | -5/Waste | Discovered new exit (range 13) 18809 | -5/Waste | Identified exit to Factory 19005 | -5/Waste | Build established: Hacker-Mutant 19057 | -5/Waste | Entered Factory 19057 | -5/Factory | Accompanied by 14 allies 19202 | -5/Factory | Discovered new exit (range 13) 19240 | -5/Factory | Lost 3 allies 19309 | -5/Factory | Fabricated Lrn. Terrain Scanner? 19474 | -5/Factory | Lost 6 allies 19550 | -5/Factory | Lost 3 parts (2n1u) 19640 | -5/Factory | Discovered new exit (range 7) 19650 | -5/Factory | Identified exit to Factory 19816 | -5/Factory | Lost 7 parts (1p4n2u) 19877 | -5/Factory | Identified exit to Upper Caves 19890 | -5/Factory | Core integrity fell below 50% 19911 | -5/Factory | System corruption reached 10% 19953 | -5/Factory | Core integrity fell below 20% 19958 | -5/Factory | Destroyed by G-50 Soldier with Heavy Laser Last Messages --------------- 19930_ Repair Station disabled. 19930_ Backup Propulsion I tumbles out of repair station. 19931_ System corrupted: Component data lost. 19931_ Repair Station disabled. 19931_ Acquired Gyrokinetic Inverter. 19933_ Imp. Hacking Suite destroyed. 19933_ Adv. Signal Interpreter destroyed. 19946_ Connecting with Terminal... >>Trojan(Skim) Trojan loaded successfully. Testing... Terminal linked with 1 system. Please expand to 3 more systems! >>Layout(Zone) Retrieving Zone 2L layout... Downloaded map data. 19948_ Critical hit (Burn: +37). 19952_ System corrupted: Matter fused (-10). 19952_ Acquired Adv. System Restoration Module. 19952_ Fusion Modulator explodes. Map ----- +----------------------------------------------------+ | | | | | | | | | | | | | | | | | | | | | | | | | ?????????????????????????????????????????????????? | | ?????????????????????????????????????????????????? | | ?????????????????????????????????????????????????? | | ???????????????????????####??????????????????????? | | ??????????????????????##T #??????????????????????? | | ?????????????????????? ???????????????????????? | | ?????????????????????? ???????????????????????? | | ?????????????????#### ######### # ?? | | ??????????? ????? #???????# #####?? | | ??????????? ???####### #???????# #???#?? | | ??????????# ?#### # ####### #???????# #####?? | | ??????????+ #; ;;k;;###?# #???????# ?? | | ??????????# ; #?# #???????#######?? | | ??????????# @ #?# #????????????##?? | | ??????????# #?# #????????????# ?? | | ??????????# #?# #??########### ?? | | ??????????# ! #?# #??# ?? | | ??????????# #?# #??# #####/### ?? | | ??????????# #?# #??# ## T # ?? | | ??????????# ! ### #### ## ##?? | | ??????????# g ! # ## ## #??? | | ??????????# ; g g pp# ## ## ##?? | | ??????????# ; = u/ T ######### ?? | | ??????????# # # ## # ?? | | ??????????# ?############## ## # ?? | | ??????????? ???# ######### """ + ?? | | ??????????? ?H???# """""" #???????# """ # ?? | | ?????????????????# """""" #???????# """ # ?? | | ?????????????????# """""" #???????# "" ##?? | | ?????????????????# """""" #???????# "" #??? | | ?????????????????# #???????# #??? | | ?????????????????# ######### #??? | | ???????##################+### #??? | | ???????# # | """#??? | | ???????# ] """" # R"#??? | | ???????# """" + ! "" #??? | | ???????# """" # =#??? | | ??????# """" # #??? | +----------------------------------------------------+ Best States ------------- Heat Dissipation 71 Energy Generation 29 Energy Capacity 600 Matter Stores 300 Matter Capacity 300 Sight Range 16 Robot Scan Range 15 Terrain Scan Range 24 Terrain Scan Density 210 ECM Strength 1 Armor Coverage 800 Propulsion Shielding 66 Weapon Shielding 100 Evasion (%) 67 Target Analysis 8 Recoil Reduction 4 Salvage Targeting 4 Offensive Hacking 48 Defensive Hacking 16 Authchip Count 2 Item Schematics ----------------- Cmb. Airjet | -8/Materials | Scanalyzed Aerolev Unit | -8/Materials | Scanalyzed Gatling Laser | -8/Materials | Scanalyzed Imp. Trap Extractor | -8/Materials | Scanalyzed Plasma Cutter | -8/Materials | Scanalyzed Beamcaster | -8/Materials | Scanalyzed Imp. Heat Sink | -8/Materials | Scanalyzed Imp. Propulsion Shielding | -8/Materials | Scanalyzed Rocket Launcher | -8/Materials | Scanalyzed Lgt. Assault Rifle | -8/Materials | Scanalyzed Enh. Autogun | -8/Materials | Scanalyzed Powered Armor | -8/Materials | Scanalyzed Arm. Treads | -8/Materials | Scanalyzed ECM Suite | -8/Materials | Scanalyzed Gravmag Array | -8/Materials | Scanalyzed Lrn. Terrain Scanner | -6/Factory | Hacked Cmb. Gravmag System | -6/Factory | Hacked Huge Storage Unit | -6/Extension | Hacked Hcp. Storage Unit | -6/Extension | Hacked Robot Schematics ------------------ M-28 Smith | -6/Extension | Hacked Fabricated ------------ Cmb. Airjet | x2 | -7/Factory | Authchip Cmb. Airjet | x2 | -7/Factory | Authchip Lrn. Terrain Scanner | x2 | -5/Factory | Authchip Repaired ---------- Enh. Autogun | 15% | -8/Materials Gravmag Array | 99% | -8/Materials | Broken Aerolev Unit | 60% | -7/Factory Alien Tech Used ----------------- Core Expander Achievements -------------- None Challenges ------------ None Game ------ Seed ColdTerrorCycler Manual? 0 Play Time 03:14:13 Cumulative 379.6 hours Start 2025.09.18 @ 02:22:45 End 2025.09.21 @ 15:04:00 Sessions 5 Manual Loads 0 Difficulty Rogue Special Mode None Game No. 425 Rogue 425 Adventurer 0 Explorer 0 Win Type - Total 11 Types 8/0/2/1/0/0/0/0/0/0 Lore% 79 Gallery% 81 Achievement% 76 Wizard Run 0 Options --------- Layout 0 ASCII 0 Keyboard 0 Movement Numpad Keybinds 0 Fullscreen 2 Font 18/X11 Map View 76x50 Zoom Use 0% Tactical HUD 1 Map Filters NONE Filters NONE Steam 1 RUN: 4e6925d7-9c57-4aef-95f4-20b8ee7cd132